fUSD/lending_fUSD_20251024
["ID","MTS","AMOUNT","RATE_DAILY","PERIOD"]
[392285397,1761309041098,-151.0,0.00039155,2]
[392285398,1761309041108,-151.0,0.00039155,2]
[392285399,1761309041118,-151.0,0.00039155,2]
[392285400,1761309041128,-151.0,0.00039155,2]
[392285401,1761309041138,-151.0,0.00039155,2]
[392285402,1761309041149,-151.0,0.00039155,2]
[392285403,1761309041159,-151.0,0.00039155,2]
[392285404,1761309041168,-151.0,0.00039155,2]
[392285405,1761309041178,-151.0,0.00039155,2]
[392285406,1761309041188,-176.35,0.00039178,2]
[392285407,1761309041199,-547.6,0.00039178,2]
[392285408,1761309041209,-168.52,0.00039178,2]
[392285409,1761309041219,-301.15,0.00039178,2]
[392285410,1761309041229,-150.0,0.00039178,2]
[392285411,1761309041239,-150.0,0.00039178,2]
[392285412,1761309041253,-414.35,0.00039178,2]
[392285413,1761309041263,-547.6,0.00039178,2]
[392285414,1761309041278,-176.35,0.00039178,2]
[392285415,1761309041289,-150.0,0.00039178,2]
[392285416,1761309041303,-150.0,0.00039178,2]
[392285417,1761309041313,-168.52,0.00039178,2]
[392285418,1761309041323,-414.35,0.00039178,2]
[392285419,1761309041332,-176.35,0.00039178,2]
[392285420,1761309041342,-547.6,0.00039178,2]
[392285421,1761309041352,-168.52,0.00039178,2]
[392285422,1761309041362,-150.0,0.00039178,2]
[392285423,1761309041372,-414.35,0.00039178,2]
[392285424,1761309041382,-150.0,0.00039178,2]
[392285425,1761309041392,-547.6,0.00039178,2]
[392285426,1761309041401,-176.35,0.00039178,2]
[392285427,1761309041411,-168.52,0.00039178,2]
[392285428,1761309041420,-414.35,0.00039178,2]
[392285429,1761309041430,-301.85,0.00039178,2]
[392285430,1761309041440,-176.35,0.00039178,2]
[392285431,1761309041449,-547.6,0.00039178,2]
[392285432,1761309041458,-168.52,0.00039178,2]
[392285433,1761309041469,-414.35,0.00039178,2]
[392285434,1761309041479,-1094.22,0.00039178,2]
[392285435,1761309041488,-352.65,0.00039178,2]
[392285436,1761309041497,-168.52,0.00039178,2]
[392285437,1761309041507,-414.35,0.00039178,2]
[392285438,1761309041516,-168.52,0.00039178,2]
[392285439,1761309041532,-176.35,0.00039178,2]
[392285440,1761309041541,-414.35,0.00039178,2]
[392285441,1761309041552,-176.35,0.00039178,2]
[392285442,1761309041562,-168.52,0.00039178,2]
[392285443,1761309041572,-414.35,0.00039178,2]
[392285444,1761309041581,-176.25,0.00039178,2]
[392285445,1761309041591,-168.52,0.00039178,2]
[392285446,1761309041600,-414.35,0.00039178,2]
[392285447,1761309041610,-336.89,0.00039178,2]
[392285448,1761309041619,-414.35,0.00039178,2]
[392285449,1761309041628,-414.35,0.00039178,2]
[392285450,1761309041638,-414.35,0.00039178,2]
[392285451,1761309041647,-414.35,0.00039178,2]
[392285452,1761309041657,-215.6,0.00039178,2]
[392285453,1761309041667,-500.0,0.00039181,30]
[392285454,1761309041676,-817.92489502,0.00039236,2]
[392285455,1761309041686,-500.0,0.00039247,30]
[392285456,1761309041697,-894.43,0.00039315,2]
[392285457,1761309041706,-500.0,0.00039367,2]
[392285458,1761309041717,-2613.73825908,0.00039367,2]
[392285459,1761309041726,-204.748879,0.000394,30]
[392285460,1761309041735,-500.0,0.00039439,30]
[392285461,1761309041744,-1000.0,0.00039451,7]
[392285462,1761309041754,-500.0,0.00039451,7]
[392285463,1761309041764,-500.0,0.00039451,7]
[392285464,1761309041780,-500.0,0.0003949,30]
[392285465,1761309041790,-300.0,0.000395,2]
[392285466,1761309041800,-344.75363738,0.000395,2]
[392285467,1761309041810,-817.92489502,0.00039512,2]
[392285468,1761309041819,-578.0,0.00039529,7]
[392285469,1761309041829,-340.49,0.00039654,2]
[392285470,1761309041838,-200.0,0.0003968,20]
[392285471,1761309041848,-233.7175,0.0003969,2]
[392285472,1761309041857,-888.48356208,0.00039693,30]
[392285473,1761309041866,-6588.48040888,0.000397,2]
[392285474,1761309041877,-10000.0,0.000397,120]
[392285475,1761309041886,-600.0,0.000397,14]
[392285476,1761309041896,-416.36,0.000397,30]
[392285477,1761309041905,-461.24831418,0.00039726,15]
[392285478,1761309041915,-279.96,0.00039726,2]
[392285479,1761309041925,-151.01,0.00039726,2]
[392285480,1761309041934,-300.0,0.00039726,2]
[392285481,1761309041943,-300.0,0.00039726,2]
[392285482,1761309041953,-209.41,0.00039726,2]
[392285483,1761309041962,-150.98,0.00039726,2]
[392285484,1761309041972,-150.0,0.00039726,2]
[392285485,1761309041981,-150.0,0.00039726,2]
[392285486,1761309041990,-150.0,0.00039726,2]
[392285487,1761309041999,-301.87,0.00039726,2]
[392285488,1761309042009,-150.0,0.00039726,2]
[392285489,1761309042018,-300.0,0.00039726,2]
[392285490,1761309042034,-158.39,0.00039761,14]
[392285491,1761309042043,-33170.7581,0.0003979,2]
[392285492,1761309042053,-1000.0,0.0003979,2]
[392285493,1761309042063,-817.92489503,0.00039791,2]
[392285494,1761309042072,-88168.6025,0.000398,2]
[392285495,1761309042082,-200.69555663,0.000398,2]
[392285496,1761309042091,-900.0,0.000398,14]
[392285497,1761309042100,-166.66,0.00039805,30]
[392285498,1761309042110,-200.0,0.00039846,20]
[392285499,1761309042120,-1000.0,0.0003987,2]
[392285500,1761309042130,-2500.0,0.0003987,2]
[392285501,1761309042140,-9961.3857,0.00039888,2]
[392285502,1761309042151,-632.7940325,0.00039889,12]
[392285503,1761309042161,-150.0,0.00039889,7]
[392285504,1761309042171,-7000.0,0.0003989,2]
[392285505,1761309042182,-414.06464202,0.000399,2]
[392285506,1761309042194,-1700.70628813,0.000399,2]
[392285507,1761309042206,-542.81243908,0.000399,2]
[392285508,1761309042216,-1200.0,0.000399,14]
[392285509,1761309042227,-2613.73825908,0.00039911,15]
[392285510,1761309042237,-1000.0,0.00039915,7]
[392285511,1761309042248,-5888.0,0.0003992,2]
[392285512,1761309042261,-150.0,0.00039944,7]
[392285513,1761309042277,-500.0,0.00039944,2]
[392285514,1761309042288,-931.0,0.00039944,7]
[392285515,1761309042299,-150.84,0.0003996,2]
[392285516,1761309042311,-161.53545055,0.0003996,2]
[392285517,1761309042322,-6588.48040885,0.00039966,15]
[392285518,1761309042333,-18318.3538146,0.0003997,2]
[392285519,1761309042344,-500.0,0.00039973,5]
[392285520,1761309042356,-503.40980697,0.00039973,5]
[392285521,1761309042367,-501.55257666,0.00039973,5]
[392285522,1761309042378,-500.0,0.00039973,5]
[392285523,1761309042390,-165.97541972,0.00039973,5]
[392285524,1761309042401,-200.0,0.00039973,5]
[392285525,1761309042417,-160.2103039,0.00039973,5]
[392285526,1761309042430,-501.31462523,0.00039973,5]
[392285527,1761309042441,-500.30913434,0.00039973,5]
[392285528,1761309042451,-160.20702108,0.00039973,2]
[392285529,1761309042463,-500.0,0.00039973,5]
[392285530,1761309042474,-160.20617494,0.00039973,5]
[392285531,1761309042485,-160.18810906,0.00039973,5]
[392285532,1761309042497,-500.0,0.00039973,5]
[392285533,1761309042509,-160.23261061,0.00039973,2]
[392285534,1761309042531,-160.21026238,0.00039973,2]
[392285535,1761309042548,-500.0,0.00039973,5]
[392285537,1761309042559,-360.43011227,0.00039973,5]
[392285538,1761309042574,-159.18949012,0.00039973,2]
[392285540,1761309042585,-500.0,0.00039973,5]
[392285541,1761309042595,-350.5871001,0.00039973,5]
[392285542,1761309042607,-500.0,0.00039973,5]
[392285543,1761309042618,-500.0,0.00039973,5]
[392285544,1761309042632,-463.72592388,0.00039973,5]
[392285545,1761309042645,-500.0,0.00039973,5]
[392285546,1761309042659,-500.0,0.00039973,5]
[392285547,1761309042672,-500.0,0.00039973,5]
[392285549,1761309042684,-163.8511214,0.00039973,5]
[392285551,1761309042696,-17552.2668874,0.00039978,3]
[392285553,1761309042708,-17552.2668874,0.00039979,3]
[392285554,1761309042720,-500.0,0.0003998,2]
[392285555,1761309042733,-500.0,0.0003998,30]
[392285556,1761309042745,-151.0,0.0003998,120]
[392285557,1761309042757,-152.313958,0.0003998,120]
[392285558,1761309042768,-151.0,0.0003998,120]
[392285559,1761309042786,-151.0,0.0003998,120]
[392285560,1761309042798,-151.0,0.0003998,120]
[392285561,1761309042809,-151.000001,0.0003998,120]
[392285562,1761309042820,-239.618751,0.0003998,120]
[392285563,1761309042832,-157970.401986,0.0003998,3]
[392285565,1761309042844,-52683.0482546,0.0003998,3]
[392285567,1761309042856,-500.0,0.00039987,2]
[392285569,1761309042868,-2977.3559037,0.00039988,2]
[392285571,1761309042879,-20227.0716143,0.00039988,2]
[392285572,1761309042889,-519.72252991,0.00039988,30]
[392285573,1761309042902,-1410.5913045,0.00039988,2]
[392285574,1761309042914,-500.0,0.00039988,30]
[392285575,1761309042925,-413.25837766,0.00039988,30]
[392285576,1761309042944,-531.154828,0.00039988,120]
[392285577,1761309042958,-531.154828,0.00039988,120]
[392285578,1761309042970,-151.0,0.00039988,120]
[392285579,1761309042981,-531.154828,0.00039988,120]
[392285580,1761309042993,-531.154828,0.00039988,120]
[392285581,1761309043005,-151.0,0.00039988,120]
[392285582,1761309043017,-152.235087,0.00039988,120]
[392285583,1761309043039,-151.0,0.00039988,120]
[392285584,1761309043053,-309.350587,0.00039988,120]
[392285585,1761309043066,-151.0,0.00039988,120]
[392285586,1761309043078,-152.235087,0.00039988,120]
[392285587,1761309043089,-151.0,0.00039988,120]
[392285588,1761309043100,-309.350587,0.00039988,120]
[392285589,1761309043111,-152.235087,0.00039988,120]
[392285590,1761309043123,-151.0,0.00039988,120]
[392285591,1761309043135,-151.0,0.00039988,120]
[392285592,1761309043146,-1118.276066,0.00039988,120]
[392285593,1761309043158,-151.0,0.00039988,120]
[392285594,1761309043170,-152.235087,0.00039988,120]
[392285595,1761309043181,-309.350587,0.00039988,120]
[392285596,1761309043192,-151.0,0.00039988,120]
[392285597,1761309043204,-275.663505,0.00039988,120]
[392285598,1761309043217,-151.0,0.00039988,120]
[392285599,1761309043229,-1118.276066,0.00039988,120]
[392285600,1761309043241,-151.0,0.00039988,120]
[392285601,1761309043259,-309.350587,0.00039988,120]
[392285602,1761309043278,-151.0,0.00039988,120]
[392285603,1761309043290,-151.0,0.00039988,120]
[392285604,1761309043302,-1118.276066,0.00039988,120]
[392285605,1761309043312,-151.0,0.00039988,120]
[392285606,1761309043323,-151.0,0.00039988,120]
[392285607,1761309043335,-151.0,0.00039988,120]
[392285608,1761309043346,-151.0,0.00039988,120]
[392285609,1761309043357,-1118.276066,0.00039988,120]
[392285610,1761309043369,-151.0,0.00039988,120]
[392285611,1761309043379,-151.0,0.00039988,30]
[392285612,1761309043390,-151.0,0.00039988,120]
[392285613,1761309043402,-151.0,0.00039988,120]
[392285614,1761309043413,-151.0,0.00039988,120]
[392285615,1761309043423,-151.0,0.00039988,30]
[392285616,1761309043434,-156.41887,0.00039988,120]
[392285617,1761309043444,-260.662743,0.00039988,30]
[392285618,1761309043456,-151.0,0.00039988,120]
[392285619,1761309043473,-151.0,0.00039988,120]
[392285620,1761309043484,-151.0,0.00039988,120]
[392285621,1761309043495,-234.765136,0.00039988,120]
[392285622,1761309043506,-151.0,0.00039988,120]
[392285623,1761309043517,-621.489547,0.00039988,120]
[392285624,1761309043537,-151.0,0.00039988,120]
[392285625,1761309043548,-151.0,0.00039988,120]
[392285626,1761309043560,-621.489547,0.00039988,120]
[392285627,1761309043570,-151.0,0.00039988,120]
[392285628,1761309043581,-621.489547,0.00039988,120]
[392285630,1761309043592,-621.489547,0.00039988,120]
[392285632,1761309043603,-151.0,0.00039988,120]
[392285633,1761309043614,-151.0,0.00039988,120]
[392285634,1761309043625,-151.0,0.00039988,120]
[392285635,1761309043636,-151.0,0.00039988,120]
[392285636,1761309043647,-151.0,0.00039988,120]
[392285637,1761309043658,-151.0,0.00039988,120]
[392285638,1761309043669,-151.0,0.00039988,120]
[392285639,1761309043682,-151.0,0.00039988,120]
[392285640,1761309043693,-151.0,0.00039988,120]
[392285641,1761309043704,-151.0,0.00039988,120]
[392285642,1761309043714,-151.0,0.00039988,120]
[392285643,1761309043725,-806.73451,0.00039988,120]
[392285644,1761309043736,-806.73451,0.00039988,120]
[392285645,1761309043746,-151.0,0.00039988,120]
[392285646,1761309043757,-806.73451,0.00039988,120]
[392285647,1761309043768,-151.0,0.00039988,120]
[392285648,1761309043786,-806.73451,0.00039988,120]
[392285649,1761309043797,-151.0,0.00039988,120]
[392285650,1761309043808,-151.0,0.00039988,120]
[392285651,1761309043819,-151.0,0.00039988,120]
[392285652,1761309043830,-361.07,0.00039989,30]
[392285653,1761309043842,-151.0,0.00039989,120]
[392285654,1761309043854,-500.0,0.00039989,120]
[392285655,1761309043865,-520.0,0.00039989,120]
[392285656,1761309043875,-250.0,0.00039989,120]
[392285657,1761309043886,-151.0,0.00039989,120]
[392285658,1761309043897,-500.0,0.00039989,120]
[392285659,1761309043907,-250.0,0.00039989,120]
[392285660,1761309043917,-500.0,0.00039989,120]
[392285661,1761309043927,-201.12765535,0.00039989,120]
[392285662,1761309043937,-151.0,0.00039989,120]
[392285663,1761309043947,-500.0,0.00039989,120]
[392285664,1761309043957,-160.0,0.00039989,120]
[392285665,1761309043968,-500.0,0.00039989,120]
[392285666,1761309043979,-250.0,0.00039989,120]
[392285667,1761309043991,-500.0,0.00039989,120]
[392285668,1761309044002,-151.0,0.00039989,120]
[392285669,1761309044263,-209.40437684,0.00039989,120]
[392285670,1761309044280,-250.0,0.00039989,120]
[392285671,1761309044291,-500.0,0.00039989,120]
[392285672,1761309044303,-500.0,0.00039989,120]
[392285673,1761309044315,-151.0,0.00039989,120]
[392285674,1761309044326,-250.0,0.00039989,120]
[392285675,1761309044338,-500.0,0.00039989,120]
[392285676,1761309044348,-500.0,0.00039989,120]
[392285677,1761309044357,-250.0,0.00039989,120]
[392285678,1761309044368,-151.0,0.00039989,120]
[392285679,1761309044379,-600.0,0.00039989,120]
[392285680,1761309044391,-500.0,0.00039989,120]
[392285681,1761309044403,-250.0,0.00039989,120]
[392285682,1761309044414,-250.0,0.00039989,120]
[392285683,1761309044424,-500.0,0.00039989,120]
[392285684,1761309044435,-151.0,0.00039989,120]
[392285685,1761309044444,-500.0,0.00039989,120]
[392285686,1761309044454,-250.0,0.00039989,120]
[392285687,1761309044464,-250.0,0.00039989,120]
[392285688,1761309044474,-151.0,0.00039989,120]
[392285689,1761309044485,-500.0,0.00039989,120]
[392285690,1761309044496,-151.0,0.00039989,120]
[392285691,1761309044506,-500.0,0.00039989,120]
[392285692,1761309044515,-250.0,0.00039989,120]
[392285693,1761309044531,-250.0,0.00039989,120]
[392285694,1761309044540,-500.0,0.00039989,120]
[392285695,1761309044550,-151.0,0.00039989,120]
[392285696,1761309044560,-201.53321539,0.00039989,120]
[392285697,1761309044570,-500.0,0.00039989,120]
[392285698,1761309044580,-250.0,0.00039989,120]
[392285699,1761309044590,-250.0,0.00039989,120]
[392285700,1761309044600,-500.0,0.00039989,120]
[392285701,1761309044609,-151.0,0.00039989,120]
[392285702,1761309044619,-500.0,0.00039989,120]
[392285703,1761309044629,-250.0,0.00039989,120]
[392285704,1761309044639,-500.0,0.00039989,120]
[392285705,1761309044649,-250.0,0.00039989,120]
[392285706,1761309044659,-250.0,0.00039989,120]
[392285707,1761309044670,-500.0,0.00039989,120]
[392285708,1761309044680,-500.0,0.00039989,120]
[392285709,1761309044690,-250.0,0.00039989,120]
[392285710,1761309044700,-414.0,0.00039989,120]
[392285711,1761309044710,-500.0,0.00039989,120]
[392285712,1761309044720,-250.0,0.00039989,120]
[392285713,1761309044730,-250.0,0.00039989,120]
[392285714,1761309044740,-160.12855638,0.00039989,120]
[392285715,1761309044750,-500.0,0.00039989,120]
[392285716,1761309044759,-500.0,0.00039989,120]
[392285717,1761309044769,-250.0,0.00039989,120]
[392285718,1761309044785,-250.0,0.00039989,120]
[392285719,1761309044795,-500.0,0.00039989,120]
[392285720,1761309044805,-500.0,0.00039989,120]
[392285721,1761309044815,-152.81341201,0.00039989,120]
[392285722,1761309044826,-151.0,0.00039989,120]
[392285723,1761309044835,-250.0,0.00039989,120]
[392285724,1761309044845,-200.0,0.00039989,120]
[392285725,1761309044855,-500.0,0.00039989,120]
[392285726,1761309044865,-500.0,0.00039989,120]
[392285727,1761309044875,-192.00799701,0.00039989,120]
[392285728,1761309044884,-250.0,0.00039989,120]
[392285729,1761309044894,-289.89738536,0.00039989,120]
[392285730,1761309044905,-500.0,0.00039989,120]
[392285731,1761309044914,-500.0,0.00039989,120]
[392285732,1761309044924,-250.0,0.00039989,120]
[392285733,1761309044934,-250.0,0.00039989,120]
[392285734,1761309044944,-500.0,0.00039989,120]
[392285735,1761309044954,-500.0,0.00039989,120]
[392285736,1761309044964,-250.0,0.00039989,120]
[392285737,1761309044974,-250.0,0.00039989,120]
[392285738,1761309044984,-500.0,0.00039989,120]
[392285739,1761309044994,-250.0,0.00039989,120]
[392285740,1761309045004,-250.0,0.00039989,120]
[392285741,1761309045014,-500.0,0.00039989,120]
[392285742,1761309045030,-300.0,0.00039989,120]
[392285743,1761309045039,-250.0,0.00039989,120]
[392285744,1761309045049,-250.0,0.00039989,120]
[392285745,1761309045059,-500.0,0.00039989,120]
[392285746,1761309045068,-500.0,0.00039989,120]
[392285747,1761309045078,-345.22140001,0.00039989,120]
[392285748,1761309045088,-221.33888792,0.00039989,120]
[392285749,1761309045098,-500.0,0.00039989,120]
[392285750,1761309045108,-250.0,0.00039989,120]
[392285751,1761309045116,-500.0,0.00039989,120]
[392285752,1761309045126,-500.0,0.00039989,120]
[392285753,1761309045135,-500.0,0.00039989,120]
[392285754,1761309045145,-250.0,0.00039989,120]
[392285755,1761309045155,-500.0,0.00039989,120]
[392285756,1761309045165,-151.0,0.00039989,120]
[392285757,1761309045175,-500.0,0.00039989,120]
[392285758,1761309045185,-500.0,0.00039989,120]
[392285759,1761309045195,-250.0,0.00039989,120]
[392285760,1761309045205,-500.0,0.00039989,120]
[392285761,1761309045215,-500.0,0.00039989,120]
[392285762,1761309045224,-250.0,0.00039989,120]
[392285763,1761309045233,-500.0,0.00039989,120]
[392285764,1761309045243,-500.0,0.00039989,120]
[392285765,1761309045255,-151.0,0.00039989,120]
[392285766,1761309045265,-250.0,0.00039989,120]
[392285767,1761309045283,-200.0,0.00039989,60]
[392285768,1761309045294,-250.0,0.00039989,120]
[392285769,1761309045305,-500.0,0.00039989,120]
[392285770,1761309045315,-500.0,0.00039989,120]
[392285771,1761309045325,-151.0,0.00039989,120]
[392285772,1761309045335,-250.0,0.00039989,120]
[392285773,1761309045343,-207.4,0.00039989,60]
[392285774,1761309045353,-250.0,0.00039989,120]
[392285775,1761309045363,-500.0,0.00039989,120]
[392285776,1761309045373,-151.0,0.00039989,120]
[392285777,1761309045382,-178.47988623,0.00039989,60]
[392285778,1761309045393,-250.0,0.00039989,120]
[392285779,1761309045402,-200.0,0.00039989,120]
[392285780,1761309045413,-250.0,0.00039989,120]
[392285781,1761309045423,-500.0,0.00039989,120]
[392285782,1761309045433,-500.0,0.00039989,120]
[392285783,1761309045443,-151.0,0.00039989,120]
[392285784,1761309045453,-250.0,0.00039989,120]
[392285785,1761309045463,-201.26694162,0.00039989,120]
[392285786,1761309045473,-250.0,0.00039989,120]
[392285787,1761309045482,-500.0,0.00039989,120]
[392285788,1761309045492,-500.0,0.00039989,120]
[392285789,1761309045502,-151.0,0.00039989,120]
[392285790,1761309045511,-301.38365886,0.00039989,120]
[392285791,1761309045528,-250.0,0.00039989,120]
[392285792,1761309045538,-500.0,0.00039989,120]
[392285793,1761309045547,-151.0,0.00039989,120]
[392285794,1761309045557,-250.0,0.00039989,120]
[392285795,1761309045567,-500.0,0.00039989,120]
[392285797,1761309045576,-151.0,0.00039989,120]
[392285798,1761309045586,-250.0,0.00039989,120]
[392285799,1761309045596,-500.0,0.00039989,120]
[392285800,1761309045605,-151.0,0.00039989,120]
[392285801,1761309045615,-500.0,0.00039989,120]
[392285802,1761309045624,-256.32677684,0.00039989,120]
[392285803,1761309045635,-500.0,0.00039989,120]
[392285804,1761309045645,-500.0,0.00039989,120]
[392285805,1761309045655,-250.0,0.00039989,120]
[392285806,1761309045665,-500.0,0.00039989,120]
[392285807,1761309045674,-500.0,0.00039989,120]
[392285808,1761309045684,-250.0,0.00039989,120]
[392285809,1761309045695,-500.0,0.00039989,120]
[392285810,1761309045704,-500.0,0.00039989,120]
[392285811,1761309045714,-500.0,0.00039989,120]
[392285812,1761309045724,-500.0,0.00039989,120]
[392285813,1761309045734,-500.0,0.00039989,120]
[392285815,1761309045744,-500.0,0.00039989,120]
[392285816,1761309045753,-500.0,0.00039989,120]
[392285817,1761309045763,-500.0,0.00039989,120]
[392285818,1761309045779,-500.0,0.00039989,120]
[392285819,1761309045789,-500.0,0.00039989,120]
[392285820,1761309045799,-250.0,0.00039989,120]
[392285822,1761309045810,-500.0,0.00039989,120]
[392285823,1761309045821,-250.0,0.00039989,120]
[392285824,1761309045831,-635.95537544,0.00039989,120]
[392285825,1761309045842,-250.0,0.00039989,120]
[392285826,1761309045853,-250.0,0.00039989,120]
[392285827,1761309045862,-250.0,0.00039989,120]
[392285828,1761309045872,-250.0,0.00039989,120]
[392285829,1761309045882,-250.0,0.00039989,120]
[392285830,1761309045892,-250.0,0.00039989,120]
[392285831,1761309045903,-250.0,0.00039989,120]
[392285832,1761309045914,-500.0,0.00039989,2]
[392285833,1761309045924,-500.0,0.00039989,2]
[392285834,1761309045934,-500.0,0.00039989,2]
[392285835,1761309045945,-500.0,0.00039989,30]
[392285836,1761309045955,-500.0,0.00039989,30]
[392285837,1761309045964,-200.0,0.0003999,2]
[392285838,1761309045975,-200.0,0.0003999,2]
[392285839,1761309045985,-151.0,0.0003999,120]
[392285840,1761309045995,-7000.0,0.0003999,2]
[392285841,1761309046006,-151.0,0.0003999,120]
[392285842,1761309046015,-151.0,0.0003999,120]
[392285843,1761309046033,-777.394295,0.0003999,120]
[392285844,1761309046043,-151.0,0.0003999,30]
[392285845,1761309046053,-151.0,0.0003999,120]
[392285846,1761309046063,-151.0,0.0003999,120]
[392285847,1761309046073,-151.0,0.0003999,120]
[392285848,1761309046083,-777.394295,0.0003999,120]
[392285849,1761309046092,-151.0,0.0003999,120]
[392285850,1761309046102,-151.0,0.0003999,120]
[392285851,1761309046112,-777.394295,0.0003999,120]
[392285852,1761309046122,-151.0,0.0003999,120]
[392285853,1761309046131,-151.0,0.0003999,120]
[392285854,1761309046140,-151.0,0.0003999,120]
[392285855,1761309046150,-151.0,0.0003999,120]
[392285856,1761309046160,-777.394295,0.0003999,120]
[392285857,1761309046169,-151.0,0.0003999,120]
[392285858,1761309046181,-151.0,0.0003999,120]
[392285859,1761309046191,-151.0,0.0003999,120]
[392285860,1761309046205,-151.0,0.0003999,120]
[392285861,1761309046219,-151.0,0.0003999,120]
[392285862,1761309046229,-151.0,0.0003999,120]
[392285863,1761309046239,-151.0,0.0003999,120]
[392285864,1761309046251,-151.0,0.0003999,120]
[392285865,1761309046262,-151.0,0.0003999,120]
[392285866,1761309046277,-151.0,0.0003999,120]
[392285867,1761309046287,-151.0,0.0003999,120]
[392285868,1761309046301,-151.0,0.0003999,120]
[392285869,1761309046311,-151.0,0.0003999,120]
[392285870,1761309046321,-151.0,0.0003999,30]
[392285871,1761309046331,-151.0,0.0003999,30]
[392285872,1761309046340,-182.967155,0.0003999,120]
[392285873,1761309046352,-182.967155,0.0003999,120]
[392285874,1761309046362,-151.0,0.0003999,120]
[392285875,1761309046371,-151.0,0.0003999,120]
[392285877,1761309046381,-151.0,0.0003999,120]
[392285879,1761309046390,-151.0,0.0003999,120]
[392285881,1761309046399,-151.0,0.0003999,120]
[392285883,1761309046409,-151.0,0.0003999,120]
[392285885,1761309046418,-182.967155,0.0003999,120]
[392285887,1761309046429,-162.61256,0.0003999,120]
[392285888,1761309046439,-182.967155,0.0003999,120]
[392285889,1761309046449,-151.0,0.0003999,120]
[392285890,1761309046458,-686.857094,0.0003999,120]
[392285891,1761309046468,-151.0,0.0003999,120]
[392285892,1761309046477,-151.0,0.0003999,120]
[392285893,1761309046487,-686.857094,0.0003999,120]
[392285894,1761309046497,-151.0,0.0003999,120]
[392285895,1761309046507,-151.0,0.0003999,120]
[392285896,1761309046517,-151.0,0.0003999,120]
[392285897,1761309046535,-151.0,0.0003999,120]
[392285898,1761309046548,-182.967155,0.0003999,120]
[392285899,1761309046558,-686.857094,0.0003999,120]
[392285900,1761309046568,-182.967155,0.0003999,120]
[392285901,1761309046578,-686.857094,0.0003999,120]
[392285902,1761309046588,-173.292536,0.0003999,120]
[392285903,1761309046598,-151.0,0.0003999,120]
[392285904,1761309046619,-182.967155,0.0003999,120]
[392285906,1761309046629,-182.967155,0.0003999,120]
[392285908,1761309046639,-151.0,0.0003999,120]
[392285909,1761309046648,-686.857094,0.0003999,120]
[392285910,1761309046659,-686.857094,0.0003999,120]
[392285911,1761309046669,-151.0,0.0003999,120]
[392285912,1761309046679,-151.0,0.0003999,120]
[392285913,1761309046688,-151.0,0.0003999,120]
[392285914,1761309046699,-171.400083,0.0003999,120]
[392285915,1761309046709,-167.332004,0.0003999,120]
[392285916,1761309046719,-151.0,0.0003999,120]
[392285917,1761309046729,-155.330912,0.0003999,120]
[392285918,1761309046739,-686.857094,0.0003999,120]